[Event "*** Titled Tuesday Blitz"]
[Site "Chess.com"]
[Date "2020.12.29"]
[Round "7"]
[White "Makswolf200817"]
[Black "731291"]
[Result "0-1"]
[WhiteElo "2424"]
[BlackElo "2576"]
[TimeControl "180+1"]
[EndTime "11:18:08 PST"]
[Termination "731291 won by checkmate"]

1. d4 {[%clk 0:01:36.4]} 1... c5 {[%clk 0:03:00.9]} 2. d5 {[%clk 0:01:35.6]}
2... g6 {[%clk 0:03:00.7]} 3. c4 {[%clk 0:01:35.4]} 3... Bg7 {[%clk 0:03:01.2]}
4. Nc3 {[%clk 0:01:35.7]} 4... d6 {[%clk 0:03:01.8]} 5. e4 {[%clk 0:01:35.4]}
5... Nf6 {[%clk 0:03:02.3]} 6. Nf3 {[%clk 0:01:34.9]} 6... O-O {[%clk
0:03:02.6]} 7. g3 {[%clk 0:01:35.3]} 7... Bg4 {[%clk 0:03:02.9]} 8. Bg2 {[%clk
0:01:35.2]} 8... a6 {[%clk 0:03:03.1]} 9. O-O {[%clk 0:01:34.5]} 9... b5 {[%clk
0:03:03.7]} 10. Qe2 {[%clk 0:01:26.5]} 10... b4 {[%clk 0:02:59.2]} 11. Nd1
{[%clk 0:01:26.5]} 11... Bxf3 {[%clk 0:02:57.2]} 12. Bxf3 {[%clk 0:01:25]} 12...
Nfd7 {[%clk 0:02:53.8]} 13. Bg2 {[%clk 0:01:24]} 13... a5 {[%clk 0:02:54.4]} 14.
a4 {[%clk 0:01:21.5]} 14... Ra7 {[%clk 0:02:40]} 15. Kh1 {[%clk 0:01:19.2]}
15... e6 {[%clk 0:02:38.9]} 16. Ne3 {[%clk 0:01:15.7]} 16... exd5 {[%clk
0:02:37.9]} 17. cxd5 {[%clk 0:01:14.6]} 17... Nb6 {[%clk 0:02:37.5]} 18. f4
{[%clk 0:01:12.1]} 18... Re8 {[%clk 0:02:35.1]} 19. Rb1 {[%clk 0:01:09.8]} 19...
Nxa4 {[%clk 0:02:33.2]} 20. Qb5 {[%clk 0:01:06.1]} 20... Qd7 {[%clk 0:02:29.3]}
21. Qd3 {[%clk 0:01:02.3]} 21... Nb6 {[%clk 0:02:28.9]} 22. f5 {[%clk
0:01:01.8]} 22... Bd4 {[%clk 0:02:18.9]} 23. Ng4 {[%clk 0:00:59.5]} 23... Qe7
{[%clk 0:02:11.4]} 24. Nh6+ {[%clk 0:00:56.3]} 24... Kg7 {[%clk 0:02:11.1]} 25.
fxg6 {[%clk 0:00:55.5]} 25... fxg6 {[%clk 0:02:10.3]} 26. Rf7+ {[%clk 0:00:54]}
26... Qxf7 {[%clk 0:02:10.8]} 27. Nxf7 {[%clk 0:00:54.9]} 27... Rxf7 {[%clk
0:02:10.8]} 28. Bf4 {[%clk 0:00:55.3]} 28... Be5 {[%clk 0:02:07.9]} 29. Bxe5+
{[%clk 0:00:54.5]} 29... Rxe5 {[%clk 0:02:08.8]} 30. b3 {[%clk 0:00:54.6]} 30...
N8d7 {[%clk 0:02:01]} 31. Ra1 {[%clk 0:00:53.9]} 31... c4 {[%clk 0:01:55.8]} 32.
bxc4 {[%clk 0:00:53.1]} 32... a4 {[%clk 0:01:42.4]} 33. Qd2 {[%clk 0:00:49.4]}
33... b3 {[%clk 0:01:40.5]} 34. Qb4 {[%clk 0:00:48.9]} 34... Rf2 {[%clk
0:01:38.3]} 35. Rb1 {[%clk 0:00:38.1]} 35... b2 {[%clk 0:00:57.5]} 36. Rxb2
{[%clk 0:00:34.9]} 36... Rxb2 {[%clk 0:00:57.9]} 37. Qxb2 {[%clk 0:00:35.8]}
37... Nxc4 {[%clk 0:00:58.1]} 38. Qb4 {[%clk 0:00:35.4]} 38... Ndb6 {[%clk
0:00:57.4]} 39. Kg1 {[%clk 0:00:30.6]} 39... a3 {[%clk 0:00:55.5]} 40. Qb3
{[%clk 0:00:28.9]} 40... Re7 {[%clk 0:00:51]} 41. Kf2 {[%clk 0:00:28.1]} 41...
Ra7 {[%clk 0:00:50.6]} 42. Qa2 {[%clk 0:00:26.9]} 42... Ne5 {[%clk 0:00:50]} 43.
Bf1 {[%clk 0:00:25.1]} 43... Nbd7 {[%clk 0:00:48.5]} 44. Ke3 {[%clk 0:00:23.4]}
44... Nc5 {[%clk 0:00:47.6]} 45. Bb5 {[%clk 0:00:19.8]} 45... h5 {[%clk
0:00:45.1]} 46. h4 {[%clk 0:00:19.3]} 46... Ra5 {[%clk 0:00:44]} 47. Be2 {[%clk
0:00:18]} 47... Ra4 {[%clk 0:00:44]} 48. Bd1 {[%clk 0:00:17.3]} 48... Rxe4+
{[%clk 0:00:42.8]} 49. Kf2 {[%clk 0:00:16.8]} 49... Rd4 {[%clk 0:00:32.9]} 50.
Be2 {[%clk 0:00:07.7]} 50... Ne4+ {[%clk 0:00:22.8]} 51. Ke3 {[%clk 0:00:07.2]}
51... Ra4 {[%clk 0:00:14.8]} 52. Bd1 {[%clk 0:00:07.5]} 52... Nc3 {[%clk
0:00:13.8]} 53. Qa1 {[%clk 0:00:07.3]} 53... Nxd1+ {[%clk 0:00:09.3]} 54. Qxd1
{[%clk 0:00:07.8]} 54... Ra5 {[%clk 0:00:09]} 55. Qd2 {[%clk 0:00:07.2]} 55...
a2 {[%clk 0:00:09.2]} 56. Qxa5 {[%clk 0:00:06.8]} 56... Nc4+ {[%clk 0:00:09.7]}
57. Kd3 {[%clk 0:00:05.8]} 57... Nxa5 {[%clk 0:00:10.6]} 58. Kc2 {[%clk
0:00:06.7]} 58... a1=Q {[%clk 0:00:10.4]} 59. Kd2 {[%clk 0:00:07.1]} 59... Qe5
{[%clk 0:00:09.4]} 60. Kd1 {[%clk 0:00:07]} 60... Qxg3 {[%clk 0:00:10.3]} 61.
Kc1 {[%clk 0:00:07.9]} 61... Qg2 {[%clk 0:00:10.2]} 62. Kb1 {[%clk 0:00:07.8]}
62... Nc4 {[%clk 0:00:11.1]} 63. Kc1 {[%clk 0:00:08.7]} 63... Qd2+ {[%clk
0:00:11.2]} 64. Kb1 {[%clk 0:00:08.6]} 64... Qb2# {[%clk 0:00:12.1]} 0-1

[Event "*** Titled Tuesday Blitz"]
[Site "Chess.com"]
[Date "2020.12.29"]
[Round "7"]
[White "Aygehovit1992"]
[Black "Vuk2000"]
[Result "0-1"]
[WhiteElo "2595"]
[BlackElo "2818"]
[TimeControl "180+1"]
[EndTime "11:18:11 PST"]
[Termination "Vuk2000 won on time"]

1. e4 {[%clk 0:03:00.9]} 1... d5 {[%clk 0:02:59.6]} 2. exd5 {[%clk 0:03:00.7]}
2... Qxd5 {[%clk 0:03:00.5]} 3. Nc3 {[%clk 0:03:01.2]} 3... Qd6 {[%clk
0:03:01.1]} 4. Nf3 {[%clk 0:03:01.6]} 4... Nf6 {[%clk 0:03:01.5]} 5. Bc4 {[%clk
0:03:02]} 5... Be6 {[%clk 0:03:00.2]} 6. Nb5 {[%clk 0:02:50.6]} 6... Qb6 {[%clk
0:02:58.4]} 7. Bxe6 {[%clk 0:02:43.5]} 7... Qxe6+ {[%clk 0:02:57.4]} 8. Qe2
{[%clk 0:02:43.6]} 8... Qxe2+ {[%clk 0:02:56.5]} 9. Kxe2 {[%clk 0:02:44.5]} 9...
Na6 {[%clk 0:02:56]} 10. d4 {[%clk 0:02:44.8]} 10... c6 {[%clk 0:02:53.6]} 11.
Na3 {[%clk 0:02:44.1]} 11... e6 {[%clk 0:02:51.1]} 12. Nc4 {[%clk 0:02:44]}
12... Be7 {[%clk 0:02:21.8]} 13. c3 {[%clk 0:02:31]} 13... O-O-O {[%clk
0:02:21.2]} 14. Bg5 {[%clk 0:02:30.5]} 14... h6 {[%clk 0:02:16.7]} 15. Bxf6
{[%clk 0:02:30.7]} 15... gxf6 {[%clk 0:02:16.3]} 16. Rad1 {[%clk 0:02:30.4]}
16... b5 {[%clk 0:02:01.4]} 17. Ne3 {[%clk 0:02:22.1]} 17... Nc7 {[%clk
0:01:59.6]} 18. Nd2 {[%clk 0:02:18.4]} 18... Nd5 {[%clk 0:01:52.2]} 19. g3
{[%clk 0:02:10.6]} 19... Kc7 {[%clk 0:01:31.2]} 20. Rhe1 {[%clk 0:01:50.9]}
20... Nb6 {[%clk 0:01:26.6]} 21. f4 {[%clk 0:01:48.9]} 21... Na4 {[%clk
0:01:17]} 22. Rb1 {[%clk 0:01:48.7]} 22... Rd7 {[%clk 0:00:58.5]} 23. Rec1
{[%clk 0:01:36.6]} 23... Rhd8 {[%clk 0:00:55.4]} 24. b3 {[%clk 0:01:35.6]} 24...
Nb6 {[%clk 0:00:54.2]} 25. Nf3 {[%clk 0:01:31.8]} 25... c5 {[%clk 0:00:48.9]}
26. Rd1 {[%clk 0:01:23.1]} 26... cxd4 {[%clk 0:00:26.6]} 27. Nxd4 {[%clk
0:01:19.4]} 27... b4 {[%clk 0:00:27]} 28. Nb5+ {[%clk 0:01:17.6]} 28... Kc6
{[%clk 0:00:27]} 29. Rxd7 {[%clk 0:01:17.4]} 29... Rxd7 {[%clk 0:00:27.1]} 30.
Nd4+ {[%clk 0:01:11.8]} 30... Kb7 {[%clk 0:00:21.4]} 31. Rd1 {[%clk 0:00:56.2]}
31... bxc3 {[%clk 0:00:20.1]} 32. Ndc2 {[%clk 0:00:56.8]} 32... Rc7 {[%clk
0:00:17.6]} 33. Rd3 {[%clk 0:00:49.9]} 33... f5 {[%clk 0:00:17.1]} 34. Kd1
{[%clk 0:00:41.1]} 34... Bf6 {[%clk 0:00:16.1]} 35. Ne1 {[%clk 0:00:39.6]} 35...
Nd7 {[%clk 0:00:16.1]} 36. Kc2 {[%clk 0:00:38.6]} 36... Nc5 {[%clk 0:00:16.6]}
37. Rd1 {[%clk 0:00:38.8]} 37... Na6 {[%clk 0:00:15.1]} 38. a3 {[%clk
0:00:38.1]} 38... Nc5 {[%clk 0:00:14.8]} 39. Nc4 {[%clk 0:00:35.6]} 39... Ne4
{[%clk 0:00:13.3]} 40. Nd3 {[%clk 0:00:33.4]} 40... Rd7 {[%clk 0:00:07.8]} 41.
Re1 {[%clk 0:00:20.1]} 41... Kc7 {[%clk 0:00:06.6]} 42. g4 {[%clk 0:00:19.5]}
42... Bd4 {[%clk 0:00:05.1]} 43. h3 {[%clk 0:00:18.3]} 43... Bf6 {[%clk
0:00:04.8]} 44. Re2 {[%clk 0:00:16.7]} 44... Ng3 {[%clk 0:00:04.3]} 45. Rg2
{[%clk 0:00:14.2]} 45... Ne4 {[%clk 0:00:04.7]} 46. b4 {[%clk 0:00:12.6]} 46...
Rd4 {[%clk 0:00:04.4]} 47. Na5 {[%clk 0:00:08.8]} 47... fxg4 {[%clk 0:00:04.2]}
48. hxg4 {[%clk 0:00:08.6]} 48... Nd6 {[%clk 0:00:04]} 49. Nb3 {[%clk
0:00:08.8]} 49... Re4 {[%clk 0:00:03.8]} 50. Nbc5 {[%clk 0:00:09.2]} 50... Re3
{[%clk 0:00:03.9]} 51. g5 {[%clk 0:00:09.3]} 51... hxg5 {[%clk 0:00:04.4]} 52.
fxg5 {[%clk 0:00:10.2]} 52... Bg7 {[%clk 0:00:05.1]} 53. Rh2 {[%clk 0:00:09.4]}
53... Nb5 {[%clk 0:00:05]} 54. Rh7 {[%clk 0:00:08.3]} 54... Nxa3+ {[%clk
0:00:05.2]} 55. Kb3 {[%clk 0:00:08.8]} 55... c2 {[%clk 0:00:05.9]} 56. Ka4
{[%clk 0:00:06]} 56... Bd4 {[%clk 0:00:05.1]} 57. Rxf7+ {[%clk 0:00:05.7]} 57...
Kc6 {[%clk 0:00:05.6]} 58. b5+ {[%clk 0:00:05.2]} 58... Nxb5 {[%clk 0:00:05]}
59. Rf8 {[%clk 0:00:02]} 59... Bxc5 {[%clk 0:00:04.1]} 60. Rc8+ {[%clk
0:00:02.3]} 60... Nc7 {[%clk 0:00:04.8]} 0-1

[Event "*** Titled Tuesday Blitz"]
[Site "Chess.com"]
[Date "2020.12.29"]
[Round "7"]
[White "PlotnikovPavel"]
[Black "chessdjw"]
[Result "1-0"]
[WhiteElo "2459"]
[BlackElo "2602"]
[TimeControl "180+1"]
[EndTime "11:18:26 PST"]
[Termination "PlotnikovPavel won on time"]

1. e4 {[%clk 0:03:00.9]} 1... e5 {[%clk 0:02:59.8]} 2. Nc3 {[%clk 0:02:59.8]}
2... Nf6 {[%clk 0:02:58]} 3. Nf3 {[%clk 0:03:00.2]} 3... Nc6 {[%clk 0:02:58.5]}
4. Be2 {[%clk 0:03:00.6]} 4... d5 {[%clk 0:02:58.1]} 5. exd5 {[%clk 0:03:00.1]}
5... Nxd5 {[%clk 0:02:59]} 6. O-O {[%clk 0:03:00.6]} 6... Nxc3 {[%clk
0:02:55.9]} 7. bxc3 {[%clk 0:03:01.5]} 7... e4 {[%clk 0:02:49]} 8. Ne1 {[%clk
0:03:01]} 8... Bd6 {[%clk 0:02:34.6]} 9. f3 {[%clk 0:03:00.9]} 9... Qh4 {[%clk
0:01:54.7]} 10. g3 {[%clk 0:03:00]} 10... Qe7 {[%clk 0:01:53]} 11. fxe4 {[%clk
0:02:57.2]} 11... Bh3 {[%clk 0:01:49.3]} 12. Ng2 {[%clk 0:02:47.5]} 12... Qxe4
{[%clk 0:01:31.8]} 13. Bf3 {[%clk 0:02:45.9]} 13... Qc4 {[%clk 0:01:23.3]} 14.
Re1+ {[%clk 0:02:41.6]} 14... Kf8 {[%clk 0:00:53.1]} 15. Re4 {[%clk 0:02:27.2]}
15... Qc5+ {[%clk 0:00:45.5]} 16. d4 {[%clk 0:02:13.6]} 16... Qxc3 {[%clk
0:00:44.6]} 17. Bd2 {[%clk 0:02:13.8]} 17... Qa3 {[%clk 0:00:33.9]} 18. c3
{[%clk 0:02:06.5]} 18... Rd8 {[%clk 0:00:29.5]} 19. Qb3 {[%clk 0:01:49.3]} 19...
Qxb3 {[%clk 0:00:27.7]} 20. axb3 {[%clk 0:01:49.1]} 20... a6 {[%clk 0:00:27.8]}
21. Nf4 {[%clk 0:01:38.6]} 21... Bf5 {[%clk 0:00:27.4]} 22. Re2 {[%clk
0:01:35.8]} 22... h6 {[%clk 0:00:24.7]} 23. Nd5 {[%clk 0:01:33.8]} 23... Kg8
{[%clk 0:00:20.1]} 24. g4 {[%clk 0:01:32.5]} 24... Bg6 {[%clk 0:00:19.6]} 25.
Bf4 {[%clk 0:01:31.4]} 25... Kh7 {[%clk 0:00:17.9]} 26. Bxd6 {[%clk 0:01:24.1]}
26... cxd6 {[%clk 0:00:18.8]} 27. Rae1 {[%clk 0:01:22]} 27... a5 {[%clk
0:00:18.6]} 28. Nb6 {[%clk 0:01:14.2]} 28... f6 {[%clk 0:00:17.1]} 29. Bd5
{[%clk 0:01:10.3]} 29... Rhe8 {[%clk 0:00:16.5]} 30. Rxe8 {[%clk 0:01:09]} 30...
Rxe8 {[%clk 0:00:17.4]} 31. Rxe8 {[%clk 0:01:08.9]} 31... Bxe8 {[%clk
0:00:18.3]} 32. Nc4 {[%clk 0:01:06]} 32... Kg6 {[%clk 0:00:15.4]} 33. Nxd6
{[%clk 0:01:05.6]} 33... Bd7 {[%clk 0:00:15.7]} 34. Nxb7 {[%clk 0:01:05.9]}
34... Ne7 {[%clk 0:00:15]} 35. Bf3 {[%clk 0:01:03.2]} 35... a4 {[%clk
0:00:15.4]} 36. bxa4 {[%clk 0:01:03.3]} 36... Bxa4 {[%clk 0:00:16.3]} 37. c4
{[%clk 0:01:03.2]} 37... h5 {[%clk 0:00:16.4]} 38. gxh5+ {[%clk 0:01:03.1]}
38... Kg5 {[%clk 0:00:17]} 39. d5 {[%clk 0:01:01.2]} 39... Kf4 {[%clk
0:00:16.9]} 40. Kf2 {[%clk 0:01:01.6]} 40... Nf5 {[%clk 0:00:15.6]} 41. d6
{[%clk 0:00:57.1]} 41... Bd7 {[%clk 0:00:14.6]} 42. c5 {[%clk 0:00:56.7]} 42...
Nd4 {[%clk 0:00:15.2]} 43. Bh1 {[%clk 0:00:48.3]} 43... Ke5 {[%clk 0:00:15.7]}
44. Na5 {[%clk 0:00:41.8]} 44... Bb5 {[%clk 0:00:15.1]} 45. Nb7 {[%clk
0:00:31.2]} 45... f5 {[%clk 0:00:15.1]} 46. Nd8 {[%clk 0:00:30.9]} 46... f4
{[%clk 0:00:14.2]} 47. Nf7+ {[%clk 0:00:30.8]} 47... Kf6 {[%clk 0:00:12.7]} 48.
Bd5 {[%clk 0:00:29.7]} 48... Be8 {[%clk 0:00:10.6]} 49. Nd8 {[%clk 0:00:26.1]}
49... Ke5 {[%clk 0:00:10.6]} 50. Bh1 {[%clk 0:00:24.2]} 50... Bb5 {[%clk
0:00:03.9]} 51. h4 {[%clk 0:00:22.9]} 51... Be8 {[%clk 0:00:03]} 52. Bg2 {[%clk
0:00:22.1]} 52... Bb5 {[%clk 0:00:02.9]} 53. Nf7+ {[%clk 0:00:22.2]} 53... Kf6
{[%clk 0:00:03]} 54. Ng5 {[%clk 0:00:22.7]} 54... Be8 {[%clk 0:00:03.1]} 55.
Ne4+ {[%clk 0:00:22.8]} 55... Ke5 {[%clk 0:00:03.6]} 56. Ng5 {[%clk 0:00:23]}
56... Bb5 {[%clk 0:00:02.1]} 57. Nf3+ {[%clk 0:00:23]} 57... Nxf3 {[%clk
0:00:02.3]} 58. Bxf3 {[%clk 0:00:23.5]} 58... Ke6 {[%clk 0:00:02.9]} 59. Ke1
{[%clk 0:00:23.4]} 59... Ke5 {[%clk 0:00:03.4]} 60. Kd2 {[%clk 0:00:23.4]} 60...
Be8 {[%clk 0:00:03.3]} 61. Kc3 {[%clk 0:00:23.5]} 61... Bb5 {[%clk 0:00:01.8]}
62. Kb4 {[%clk 0:00:23.7]} 62... Be8 {[%clk 0:00:02.7]} 63. Ka5 {[%clk
0:00:23.8]} 63... Kd4 {[%clk 0:00:03.4]} 64. Kb6 {[%clk 0:00:22.2]} 64... Ke3
{[%clk 0:00:03.6]} 65. Ba8 {[%clk 0:00:22.3]} 65... f3 {[%clk 0:00:04]} 66. Bxf3
{[%clk 0:00:22.7]} 66... Kxf3 {[%clk 0:00:04.9]} 67. c6 {[%clk 0:00:23.3]} 67...
Bxc6 {[%clk 0:00:05.1]} 68. Kxc6 {[%clk 0:00:23.5]} 68... Kg4 {[%clk 0:00:06]}
69. d7 {[%clk 0:00:24.1]} 69... Kxh5 {[%clk 0:00:06.9]} 70. d8=Q {[%clk
0:00:24.3]} 70... Kg6 {[%clk 0:00:07.8]} 71. Qg5+ {[%clk 0:00:24.4]} 71... Kh7
{[%clk 0:00:08.7]} 72. h5 {[%clk 0:00:24.9]} 72... g6 {[%clk 0:00:09.6]} 73.
hxg6+ {[%clk 0:00:23.2]} 73... Kh8 {[%clk 0:00:10.5]} 74. Qh6+ {[%clk
0:00:23.3]} 74... Kg8 {[%clk 0:00:11.4]} 75. Qh7+ {[%clk 0:00:23.8]} 1-0

[Event "*** Titled Tuesday Blitz"]
[Site "Chess.com"]
[Date "2020.12.29"]
[Round "7"]
[White "Chess_Boxer123"]
[Black "ChessQueen"]
[Result "1-0"]
[WhiteElo "2578"]
[BlackElo "2734"]
[TimeControl "180+1"]
[EndTime "11:18:34 PST"]
[Termination "Chess_Boxer123 won by resignation"]

1. d4 {[%clk 0:03:00.1]} 1... Nf6 {[%clk 0:02:59.6]} 2. c4 {[%clk 0:02:59.9]}
2... e6 {[%clk 0:02:59.7]} 3. Nf3 {[%clk 0:02:59.6]} 3... c5 {[%clk 0:02:58.7]}
4. g3 {[%clk 0:02:59]} 4... cxd4 {[%clk 0:02:57.9]} 5. Nxd4 {[%clk 0:02:59.9]}
5... d5 {[%clk 0:02:58.5]} 6. Bg2 {[%clk 0:02:58.5]} 6... e5 {[%clk 0:02:59]} 7.
Nb3 {[%clk 0:02:56.9]} 7... d4 {[%clk 0:02:59.5]} 8. O-O {[%clk 0:02:55.7]} 8...
Nc6 {[%clk 0:02:59.2]} 9. e3 {[%clk 0:02:55.9]} 9... Be7 {[%clk 0:02:58.2]} 10.
exd4 {[%clk 0:02:55.9]} 10... Nxd4 {[%clk 0:02:49.1]} 11. Nxd4 {[%clk
0:02:54.8]} 11... exd4 {[%clk 0:02:50]} 12. Nd2 {[%clk 0:02:50.7]} 12... O-O
{[%clk 0:02:49.5]} 13. Nb3 {[%clk 0:02:50.6]} 13... d3 {[%clk 0:02:46.2]} 14.
Be3 {[%clk 0:02:49.9]} 14... Be6 {[%clk 0:02:42]} 15. Rc1 {[%clk 0:02:47.4]}
15... Rc8 {[%clk 0:02:41.7]} 16. c5 {[%clk 0:02:23]} 16... Rc7 {[%clk 0:02:16]}
17. Nd4 {[%clk 0:02:11.9]} 17... Bd5 {[%clk 0:01:58.1]} 18. Qxd3 {[%clk
0:02:05.4]} 18... Bxg2 {[%clk 0:01:58]} 19. Kxg2 {[%clk 0:02:06.3]} 19... Rxc5
{[%clk 0:01:56.9]} 20. Qe2 {[%clk 0:01:54.6]} 20... Qd5+ {[%clk 0:01:51.8]} 21.
Qf3 {[%clk 0:01:55.1]} 21... Qxf3+ {[%clk 0:01:41.9]} 22. Nxf3 {[%clk
0:01:55.6]} 22... Rb5 {[%clk 0:01:25.9]} 23. b3 {[%clk 0:01:53]} 23... Nd5
{[%clk 0:01:23.9]} 24. Bd2 {[%clk 0:01:48.5]} 24... Rc5 {[%clk 0:01:20.4]} 25.
Rxc5 {[%clk 0:01:44.5]} 25... Bxc5 {[%clk 0:01:20.5]} 26. Rc1 {[%clk 0:01:45.4]}
26... b6 {[%clk 0:01:17.1]} 27. Rc4 {[%clk 0:01:39.8]} 27... Re8 {[%clk
0:01:01.3]} 28. b4 {[%clk 0:01:39.8]} 28... Bf8 {[%clk 0:00:59.9]} 29. Rd4
{[%clk 0:01:37.3]} 29... Nf6 {[%clk 0:00:59.5]} 30. a3 {[%clk 0:01:34.8]} 30...
h6 {[%clk 0:00:58.3]} 31. h3 {[%clk 0:01:30.1]} 31... Ne4 {[%clk 0:00:57.4]} 32.
Bf4 {[%clk 0:01:24.6]} 32... a5 {[%clk 0:00:55.1]} 33. g4 {[%clk 0:01:22.6]}
33... axb4 {[%clk 0:00:54.7]} 34. axb4 {[%clk 0:01:23.5]} 34... Nc3 {[%clk
0:00:52.3]} 35. Bd2 {[%clk 0:01:21.6]} 35... Nb5 {[%clk 0:00:48.5]} 36. Rd5
{[%clk 0:01:21]} 36... Nd6 {[%clk 0:00:47.5]} 37. Ne5 {[%clk 0:01:18.4]} 37...
Ne4 {[%clk 0:00:46.5]} 38. Be1 {[%clk 0:01:15.5]} 38... Nf6 {[%clk 0:00:33.2]}
39. Rb5 {[%clk 0:01:15.1]} 39... Bd6 {[%clk 0:00:31.9]} 40. Bc3 {[%clk
0:01:13.1]} 40... Bc7 {[%clk 0:00:25]} 41. f3 {[%clk 0:01:07.1]} 41... Rd8
{[%clk 0:00:24.5]} 42. Nc6 {[%clk 0:01:05.5]} 42... Rd3 {[%clk 0:00:24]} 43.
Bxf6 {[%clk 0:01:03.4]} 43... gxf6 {[%clk 0:00:24.2]} 44. Ne7+ {[%clk
0:01:02.1]} 44... Kg7 {[%clk 0:00:24.7]} 45. Nf5+ {[%clk 0:00:56.4]} 45... Kg6
{[%clk 0:00:23.9]} 46. Nh4+ {[%clk 0:00:56.5]} 46... Kg7 {[%clk 0:00:22.9]} 47.
Nf5+ {[%clk 0:00:56.6]} 47... Kg6 {[%clk 0:00:23.4]} 48. h4 {[%clk 0:00:35.3]}
48... Rd2+ {[%clk 0:00:23.7]} 49. Kf1 {[%clk 0:00:35.5]} 49... Rb2 {[%clk
0:00:24.3]} 50. h5+ {[%clk 0:00:33.8]} 50... Kh7 {[%clk 0:00:24.3]} 51. Rd5
{[%clk 0:00:31.7]} 51... Bf4 {[%clk 0:00:18.3]} 52. b5 {[%clk 0:00:31.3]} 52...
Rb1+ {[%clk 0:00:15.2]} 53. Ke2 {[%clk 0:00:31.2]} 53... Rb2+ {[%clk 0:00:15.2]}
54. Kd3 {[%clk 0:00:31.5]} 54... Bg5 {[%clk 0:00:11.3]} 55. Kc4 {[%clk
0:00:28.9]} 55... Rf2 {[%clk 0:00:09.6]} 56. Rd3 {[%clk 0:00:28.7]} 56... Rc2+
{[%clk 0:00:09.6]} 57. Rc3 {[%clk 0:00:28.8]} 57... Rd2 {[%clk 0:00:09.5]} 58.
Rd3 {[%clk 0:00:24.2]} 58... Rc2+ {[%clk 0:00:08.9]} 59. Kb3 {[%clk 0:00:24.8]}
59... Rc5 {[%clk 0:00:08.1]} 60. Rd7 {[%clk 0:00:23.4]} 60... Rxb5+ {[%clk
0:00:07.5]} 61. Ka4 {[%clk 0:00:24]} 61... Ra5+ {[%clk 0:00:07.8]} 62. Kb4
{[%clk 0:00:24.5]} 62... Kg8 {[%clk 0:00:08.3]} 63. Rd8+ {[%clk 0:00:21.6]}
63... Kh7 {[%clk 0:00:08.5]} 64. Rb8 {[%clk 0:00:19.3]} 64... Ra7 {[%clk
0:00:06.8]} 65. Rxb6 {[%clk 0:00:18.6]} 65... Rd7 {[%clk 0:00:07.3]} 66. Rd6
{[%clk 0:00:18.1]} 66... Rb7+ {[%clk 0:00:06.1]} 67. Kc4 {[%clk 0:00:17.8]}
67... Rc7+ {[%clk 0:00:06.4]} 68. Kd3 {[%clk 0:00:17.9]} 68... Ra7 {[%clk
0:00:06.2]} 69. Ke4 {[%clk 0:00:18.3]} 69... Ra4+ {[%clk 0:00:06.1]} 70. Rd4
{[%clk 0:00:18.8]} 70... Ra7 {[%clk 0:00:06.4]} 71. f4 {[%clk 0:00:18.7]} 71...
Ra1 {[%clk 0:00:04.8]} 72. fxg5 {[%clk 0:00:18.8]} 72... fxg5 {[%clk 0:00:05.4]}
73. Rd6 {[%clk 0:00:19]} 73... Rg1 {[%clk 0:00:04.7]} 74. Rxh6+ {[%clk
0:00:18.6]} 74... Kg8 {[%clk 0:00:04.7]} 75. Kf3 {[%clk 0:00:18.7]} 75... Rf1+
{[%clk 0:00:04.9]} 76. Kg2 {[%clk 0:00:19.1]} 76... Rf4 {[%clk 0:00:04.4]} 77.
Kg3 {[%clk 0:00:19.5]} 1-0